bitfinex/quotes_BTCUSD_20250928
["timestamp","ask_amount","ask_price","bid_price","bid_amount"]
[1759091880053,0.78597628,111110.0,111100.0,0.564998]
[1759091881703,0.49421628,111110.0,111100.0,0.564998]
[1759091881913,0.31664,111110.0,111100.0,0.567048]
[1759091882118,0.78054628,111110.0,111100.0,0.570228]
[1759091882271,0.48914628,111110.0,111100.0,0.570228]
[1759091882480,0.78276628,111110.0,111100.0,0.567048]
[1759091883263,0.78575628,111110.0,111100.0,0.567048]
[1759091884810,0.49120628,111110.0,111100.0,0.567048]
[1759091885023,0.78276628,111110.0,111100.0,0.567048]
[1759091885196,0.02502,111110.0,111100.0,0.567048]
[1759091885414,0.78260628,111110.0,111100.0,0.230228]
[1759091885782,0.48914628,111110.0,111100.0,0.2603799]
[1759091886013,0.78058628,111110.0,111100.0,0.2603799]
[1759091886568,0.02296,111110.0,111100.0,0.2603799]
[1759091886838,0.48914628,111110.0,111100.0,0.2603799]
[1759091888049,0.48914628,111110.0,111100.0,8.2603799]
[1759091889546,0.02296,111110.0,111100.0,8.2603799]
[1759091893597,0.02296,111110.0,111100.0,8.5512599]
[1759091893823,0.02296,111110.0,111100.0,8.5510999]
[1759091896520,0.02296,111110.0,111100.0,8.64048537]
[1759091896731,0.02296,111110.0,111100.0,8.64024537]
[1759091898911,0.02296,111110.0,111100.0,9.1061435]
[1759091902053,0.02296,111110.0,111100.0,9.1048435]
[1759091903720,0.02296,111110.0,111100.0,8.8143635]
[1759091903952,0.02296,111110.0,111100.0,9.13138469]
[1759091904115,0.02296,111110.0,111100.0,8.84142469]
[1759091904295,0.02296,111110.0,111100.0,9.13134469]
[1759091905160,0.02296,111110.0,111100.0,9.13126469]
[1759091905823,0.02296,111110.0,111100.0,8.84142469]
[1759091906202,0.02296,111110.0,111100.0,9.13122469]
[1759091908465,0.02296,111110.0,111100.0,8.66532656]
[1759091908614,0.02296,111110.0,111100.0,9.13122469]
[1759091911034,0.02296,111110.0,111100.0,8.66532656]
[1759091911185,0.02296,111110.0,111100.0,9.13122469]
[1759091911769,0.02296,111110.0,111100.0,8.84142469]
[1759091912200,0.02296,111110.0,111100.0,9.13094469]
[1759091915391,0.02296,111110.0,111100.0,8.84142469]
[1759091915593,0.02296,111110.0,111100.0,9.13074469]
[1759091915791,0.02296,111110.0,111100.0,8.66484656]
[1759091916111,0.02296,111110.0,111100.0,9.13074469]
[1759091917785,0.02296,111110.0,111100.0,8.84142469]
[1759091918000,0.02296,111110.0,111100.0,9.13074469]
[1759091919587,0.02296,111110.0,111100.0,8.66484656]
[1759091919791,0.02296,111110.0,111100.0,9.13074469]
[1759091922868,0.02296,111110.0,111100.0,8.66484656]
[1759091923062,0.02296,111110.0,111100.0,9.13074469]
[1759091933918,0.02296,111110.0,111100.0,9.12990469]
[1759091934112,0.02296,111110.0,111100.0,8.84142469]
[1759091934312,0.02296,111110.0,111100.0,8.66388656]
[1759091934526,0.02296,111110.0,111100.0,9.12978469]
[1759091935662,0.02296,111110.0,111100.0,8.84142469]
[1759091936066,0.02296,111110.0,111100.0,9.12974469]
[1759091938485,0.02296,111110.0,111100.0,8.66384656]
[1759091940442,0.02296,111110.0,111100.0,8.66368656]
[1759091941344,0.02296,111110.0,111100.0,8.37552656]
[1759091941585,0.025,111110.0,111100.0,8.66046656]
[1759091941828,0.025,111110.0,111100.0,8.37234656]
[1759091942003,0.025,111110.0,111100.0,8.66042656]
[1759091942416,0.02806,111110.0,111100.0,8.66042656]
[1759091942954,0.97698725,111130.0,111120.0,0.2101375]
[1759091943160,0.97902725,111130.0,111120.0,0.2101375]
[1759091943399,0.97902725,111130.0,111120.0,0.2334075]
[1759091943575,0.97902725,111130.0,111120.0,0.2604693]
[1759091943787,0.91723813,111130.0,111120.0,0.2604693]
[1759091944386,0.91723813,111130.0,111120.0,0.2634693]
[1759091944745,0.91723813,111130.0,111120.0,0.32969894]
[1759091945071,0.92022813,111130.0,111120.0,0.33269894]
[1759091945714,0.92022813,111130.0,111120.0,0.27548524]
[1759091946230,1.20830813,111130.0,111120.0,0.27548524]
[1759091947228,1.20826813,111130.0,111120.0,0.27548524]
[1759091948485,1.0372177,111130.0,111120.0,0.27548524]
[1759091950437,0.7491777,111130.0,111120.0,0.27548524]
[1759091950799,1.0372177,111130.0,111120.0,0.27548524]
[1759091951495,1.03690533,111130.0,111120.0,0.27548524]
[1759091952680,0.74886533,111130.0,111120.0,0.27548524]
[1759091952932,1.03690533,111130.0,111120.0,0.27548524]
[1759091953793,0.5710072,111130.0,111120.0,0.27548524]
[1759091954014,1.03690533,111130.0,111120.0,0.27548524]
[1759091956747,0.2799772,111130.0,111120.0,0.27548524]
[1759091957002,0.5680172,111130.0,111120.0,0.27753524]
[1759091957179,0.2799772,111130.0,111120.0,0.27753524]
[1759091957424,0.5680172,111130.0,111120.0,0.27753524]
[1759091957605,0.2799772,111130.0,111120.0,0.27753524]
[1759091958026,0.5680172,111130.0,111120.0,0.27753524]
[1759091958341,0.2799772,111130.0,111120.0,0.27753524]
[1759091958493,0.5680172,111130.0,111120.0,0.27753524]
[1759091958712,0.2799772,111130.0,111120.0,0.27753524]
[1759091959205,0.5659772,111130.0,111120.0,0.31071714]
[1759091959465,0.5659772,111130.0,111120.0,0.33777882]
[1759091959885,0.5680272,111130.0,111120.0,0.33777882]
[1759091962812,0.5680272,111130.0,111120.0,0.33474882]
[1759091965007,0.5680272,111130.0,111120.0,0.33778882]
[1759091966440,0.5659772,111130.0,111120.0,0.8036145]
[1759091969275,0.2779372,111130.0,111120.0,0.8036145]
[1759091969453,0.5659772,111130.0,111120.0,0.8036145]
[1759091970214,0.56582099,111130.0,111120.0,0.8036145]
[1759091974421,0.56482099,111130.0,111120.0,0.8036145]
[1759091975634,0.56478099,111130.0,111120.0,0.8036145]
[1759091976044,0.56478099,111130.0,111120.0,0.33778882]
[1759091976264,0.56478099,111130.0,111120.0,0.8036145]
[1759091977974,0.27678099,111130.0,111120.0,0.89299997]
[1759091978318,1e-08,111130.0,111120.0,1.52099997]
[1759091978519,0.43831456,111140.0,111130.0,0.1799694]
[1759091978725,0.43831456,111140.0,111130.0,0.74032055]
[1759091978726,0.41662456,111140.0,111130.0,0.74032055]
[1759091978949,0.41662456,111140.0,111130.0,0.76289055]
[1759091979169,0.41662456,111140.0,111130.0,1.05089055]
[1759091979312,0.41662456,111140.0,111130.0,1.07794735]
[1759091979726,0.41662456,111140.0,111130.0,1.07840877]
[1759091979936,0.38958683,111140.0,111130.0,1.07840877]
[1759091980133,0.3625491,111140.0,111130.0,1.07840877]
[1759091980350,0.33551137,111140.0,111130.0,1.07840877]
[1759091980554,0.30847364,111140.0,111130.0,1.08440877]
[1759091980752,0.28143591,111140.0,111130.0,1.08440877]
[1759091980949,0.25439818,111140.0,111130.0,1.08440877]
[1759091981154,0.22736045,111140.0,111130.0,1.10910606]
[1759091981396,0.20032272,111140.0,111130.0,1.10910606]
[1759091981574,0.17328499,111140.0,111130.0,1.10910606]
[1759091982383,0.17328499,111140.0,111130.0,0.64328038]
[1759091982553,0.01328499,111140.0,111130.0,1.10910606]
[1759091984869,0.38252032,111150.0,111130.0,1.10910606]
[1759091985086,0.38252032,111150.0,111140.0,0.67897079]
[1759091985282,0.36083032,111150.0,111140.0,0.69776808]
[1759091985458,0.36083032,111150.0,111140.0,1.00829808]
[1759091985666,0.36083032,111150.0,111140.0,1.03535323]
[1759091986950,0.36083032,111150.0,111140.0,1.03935323]
[1759091987400,0.36083032,111150.0,111140.0,1.03932619]
[1759091987738,0.36083032,111150.0,111140.0,1.04432619]
[1759091988924,0.36083032,111150.0,111140.0,0.75636619]
[1759091989128,0.36083032,111150.0,111140.0,1.04432619]
[1759091990419,0.36083032,111150.0,111140.0,0.75636619]
[1759091990533,0.36281032,111150.0,111140.0,1.04428619]
[1759091990766,0.36281032,111150.0,111140.0,0.75636619]
[1759091990982,0.36281032,111150.0,111140.0,1.04428619]
[1759091991185,0.36281032,111150.0,111140.0,0.75636619]
[1759091991390,0.36281032,111150.0,111140.0,1.04428619]
[1759091991588,0.36281032,111150.0,111140.0,0.75636619]
[1759091991792,0.36281032,111150.0,111140.0,1.04428619]
[1759091991995,0.36083032,111150.0,111140.0,1.04428619]
[1759091995424,0.35001505,111150.0,111140.0,1.04428619]
[1759091997230,0.35001505,111150.0,111140.0,0.75636619]
[1759091997388,0.35001505,111150.0,111140.0,1.04428619]
[1759091998606,0.35001505,111150.0,111140.0,0.57846051]
[1759091998855,0.35001505,111150.0,111140.0,0.75636619]
[1759091999330,0.35001505,111150.0,111140.0,1.04428619]
[1759092000239,0.35001505,111150.0,111140.0,0.75636619]
[1759092000677,0.35001505,111150.0,111140.0,1.04428619]
[1759092001521,0.35001505,111150.0,111140.0,1.04424619]
[1759092001743,0.35200505,111150.0,111140.0,1.04424619]
[1759092001978,0.35200505,111150.0,111140.0,1.04120619]
[1759092002167,0.35200505,111150.0,111140.0,1.03910619]
[1759092003237,0.35200505,111150.0,111140.0,0.57539051]
[1759092003450,0.35200505,111150.0,111140.0,1.04121619]
[1759092003644,0.35200505,111150.0,111140.0,0.57539051]
[1759092004062,0.35200505,111150.0,111140.0,1.04121619]
[1759092004598,0.35001505,111150.0,111140.0,1.04432619]
[1759092006019,0.35001505,111150.0,111140.0,1.02765594]
[1759092009689,0.35001505,111150.0,111140.0,0.56183026]
[1759092009946,0.35001505,111150.0,111140.0,1.02765594]
[1759092011747,0.35001505,111150.0,111140.0,0.56183026]
[1759092011967,0.35001505,111150.0,111140.0,1.02765594]
[1759092012178,0.35200505,111150.0,111140.0,0.56183026]
[1759092012383,0.35200505,111150.0,111140.0,1.02765594]
[1759092012561,0.35001505,111150.0,111140.0,1.02765594]
[1759092016288,0.51738661,111150.0,111140.0,0.05862515]
[1759092016513,1.41693229,111150.0,111140.0,0.03157]
[1759092016735,1.44399744,111150.0,111140.0,0.03157]
[1759092016955,1.27732135,111150.0,111140.0,0.03157]
[1759092017173,0.81149567,111150.0,111140.0,0.03157]
[1759092017408,1.19361567,111150.0,111140.0,0.20252321]
[1759092017592,1.65944135,111150.0,111140.0,0.20452321]
[1759092018277,1.65944135,111150.0,111140.0,0.20252321]
[1759092018496,1.27725126,111150.0,111140.0,0.20252321]
[1759092018707,1.65941126,111150.0,111140.0,0.20252321]
[1759092019140,1.09993567,111150.0,111140.0,0.20252321]
[1759092020454,0.81249567,111150.0,111140.0,0.20252321]
[1759092020672,1.56657126,111150.0,111140.0,0.20252321]
[1759092021055,0.93825126,111150.0,111140.0,0.20252321]
[1759092021290,1.22657126,111150.0,111140.0,0.20252321]
[1759092021527,0.76081567,111150.0,111140.0,0.20252321]
[1759092021728,1.22657126,111150.0,111140.0,0.20252321]
[1759092021875,0.76077567,111150.0,111130.0,0.20749116]
[1759092022079,0.76077567,111150.0,111140.0,0.17995321]
[1759092022277,0.78475567,111150.0,111140.0,0.17995321]
[1759092022502,0.96223126,111150.0,111140.0,0.17995321]
[1759092022698,1.25043126,111150.0,111140.0,0.17995321]
[1759092022897,0.78467567,111150.0,111140.0,0.17995321]
[1759092023254,0.78471567,111150.0,111140.0,0.17995321]
[1759092023452,0.49343567,111150.0,111140.0,0.17995321]
[1759092023656,0.6912902,111150.0,111140.0,0.17995321]
[1759092023867,0.6922902,111150.0,111140.0,0.17995321]
[1759092024067,0.6922902,111150.0,111140.0,0.20442321]
[1759092024263,0.66522505,111150.0,111140.0,0.20442321]
[1759092025135,0.66422505,111150.0,111140.0,0.20442321]
[1759092025312,0.66522505,111150.0,111140.0,0.20642321]
[1759092026150,0.66315505,111150.0,111140.0,0.21158321]
[1759092026380,0.66515505,111150.0,111140.0,0.20642321]
[1759092026807,0.37599505,111150.0,111140.0,0.20642321]
[1759092027022,0.66794505,111150.0,111140.0,0.20642321]
[1759092027234,0.66794505,111150.0,111140.0,0.20842321]
[1759092027437,0.37902505,111150.0,111140.0,0.20842321]
[1759092027670,0.66798505,111150.0,111140.0,0.20842321]
[1759092028627,1.13374064,111150.0,111140.0,0.20842321]
[1759092029479,0.66798505,111150.0,111140.0,0.20842321]
[1759092029886,1.22312611,111150.0,111140.0,0.02847]
[1759092032931,1.22312611,111150.0,111140.0,0.02447]
[1759092033341,1.22412611,111150.0,111140.0,0.02447]
[1759092035883,1.22436611,111150.0,111140.0,0.02447]
[1759092036156,1.31808611,111150.0,111140.0,0.02447]
[1759092036372,1.22428611,111150.0,111140.0,0.02447]
[1759092036579,1.31800611,111150.0,111140.0,0.02447]
[1759092036973,1.22420611,111150.0,111140.0,0.02447]
[1759092037181,1.31792611,111150.0,111140.0,0.02447]
[1759092038499,0.93516611,111150.0,111140.0,0.20442321]
[1759092038799,1.31792611,111150.0,111140.0,0.02447]
[1759092039171,1.70792611,111150.0,111140.0,0.02447]
[1759092039710,1.73499392,111150.0,111140.0,0.02447]
[1759092041904,1.94508284,111150.0,111140.0,0.02447]
[1759092042086,1.76514582,111150.0,111140.0,0.02447]
[1759092042465,1.76414582,111150.0,111140.0,0.02447]
[1759092042662,1.38438582,111150.0,111140.0,0.02447]
[1759092043024,2.11363392,111150.0,111140.0,0.02447]
[1759092043207,2.10863392,111150.0,111140.0,0.02447]
[1759092043632,2.12263392,111150.0,111140.0,0.02447]
[1759092048842,1.65363392,111150.0,111140.0,0.02447]
[1759092049043,1.36523392,111150.0,111140.0,0.02447]
[1759092049220,2.12231392,111150.0,111140.0,0.02447]
[1759092050074,1.36523392,111150.0,111140.0,0.02447]
[1759092050284,2.12231392,111150.0,111140.0,0.02447]
[1759092050491,2.02851392,111150.0,111140.0,0.02447]
[1759092050701,2.12223392,111150.0,111140.0,0.02447]
[1759092050911,10.70685288,111150.0,111140.0,0.02447]
[1759092051126,10.70685288,111150.0,111070.0,0.00302]
[1759092051127,0.05,111100.0,111070.0,0.00302]
[1759092051353,0.80575559,111080.0,111070.0,0.00348239]
[1759092051597,0.98241106,111080.0,111070.0,0.00563239]
[1759092051813,1.00711106,111080.0,111070.0,0.00563239]
[1759092052453,1.20812106,111080.0,111070.0,0.00563239]
[1759092052887,0.40232547,111080.0,111070.0,0.18569901]
[1759092053092,0.40248547,111080.0,111070.0,0.00663239]
[1759092053517,0.40248547,111080.0,111070.0,0.00563239]
[1759092053754,0.40248547,111080.0,111070.0,0.00963239]
[1759092053755,0.23388214,111080.0,111070.0,0.00963239]
[1759092053939,0.23388214,111080.0,111070.0,0.04041239]
[1759092054729,0.69963773,111080.0,111070.0,0.04041239]
[1759092055746,0.72433773,111080.0,111070.0,0.04041239]
[1759092055956,0.25858214,111080.0,111070.0,0.04041239]
[1759092056575,0.25858214,111080.0,111070.0,0.22047901]
[1759092056924,0.0793346,111080.0,111070.0,0.22047901]
[1759092057185,0.0973365,111080.0,111070.0,0.22047901]
[1759092057896,0.31298,111080.0,111070.0,0.22047901]
[1759092058940,0.0247,111080.0,111070.0,0.22047901]
[1759092060473,0.0247,111080.0,111070.0,0.28798342]
[1759092060894,0.0247,111080.0,111070.0,0.75373901]
[1759092061713,0.0247,111080.0,111070.0,1.04189901]
[1759092062475,0.0247,111080.0,111070.0,1.03489901]
[1759092062943,0.0247,111080.0,111070.0,1.04389901]
[1759092063352,0.0247,111080.0,111070.0,1.05089901]
[1759092063982,0.0247,111080.0,111070.0,0.58514342]
[1759092064186,0.0247,111080.0,111070.0,0.76273901]
[1759092064397,0.0247,111080.0,111070.0,1.05085901]
[1759092064738,0.0247,111080.0,111070.0,1.26415638]
[1759092065552,0.0247,111080.0,111070.0,1.60415638]
[1759092067105,0.0247,111080.0,111070.0,1.22227638]
[1759092067289,0.0247,111080.0,111070.0,1.60415638]
[1759092068595,0.0247,111080.0,111070.0,9.60415638]
[1759092070644,0.0247,111080.0,111070.0,9.51039638]
[1759092070875,0.0247,111080.0,111070.0,9.60415638]
[1759092071288,0.16,111100.0,111090.0,0.67594169]
[1759092071505,0.16,111100.0,111090.0,9.05554716]
[1759092071711,0.16,111100.0,111090.0,9.08232716]
[1759092071919,0.16,111100.0,111090.0,8.61657157]
[1759092072105,0.16,111100.0,111090.0,9.08232716]
[1759092072474,0.161,111100.0,111090.0,9.08232716]
[1759092072876,0.161,111100.0,111090.0,8.32845157]
[1759092073082,0.161,111100.0,111090.0,9.17708716]
[1759092074083,0.161,111100.0,111090.0,9.17608716]
[1759092074286,0.161,111100.0,111090.0,9.18108716]
[1759092074604,0.16,111100.0,111090.0,8.79920716]
[1759092074811,0.16,111100.0,111090.0,9.18108716]
[1759092075014,0.16,111100.0,111090.0,9.18908716]
[1759092079222,0.16,111100.0,111090.0,9.14720716]
[1759092079472,0.16,111100.0,111090.0,9.52904716]
[1759092079722,0.16,111100.0,111090.0,9.4623539]
[1759092079923,0.16,111100.0,111090.0,9.5561139]
[1759092080367,0.16,111100.0,111090.0,9.55621896]
[1759092082531,0.16,111100.0,111090.0,9.55615763]
[1759092086004,1e-08,111100.0,111090.0,9.52909089]
[1759092086204,1e-08,111100.0,111090.0,9.55615372]
[1759092086498,1e-08,111100.0,111090.0,9.55607372]
[1759092086953,0.01933,111110.0,111100.0,0.180018]
[1759092087150,0.07295609,111120.0,111110.0,0.5501537]
[1759092087351,0.07295609,111120.0,111110.0,1.39854849]
[1759092087601,0.07295609,111120.0,111110.0,9.42174849]
[1759092087745,0.46863,111130.0,111120.0,0.2101375]
[1759092088114,0.45125,111130.0,111120.0,0.67807682]
[1759092088331,0.45125,111130.0,111120.0,0.61769989]
[1759092088546,0.45125,111130.0,111120.0,1.08349921]
[1759092088737,0.45125,111130.0,111120.0,1.08652921]
[1759092089109,0.45225,111130.0,111120.0,1.08652921]
[1759092090091,0.45125,111130.0,111120.0,1.08652921]
[1759092090516,0.45125,111130.0,111120.0,1.15290764]
[1759092090718,0.45125,111130.0,111120.0,1.15490764]
[1759092090909,0.09530609,111140.0,111130.0,0.1799694]
[1759092091180,0.07792609,111140.0,111130.0,0.4679694]
[1759092091383,0.0229719,111140.0,111130.0,0.4911694]
[1759092091617,0.0229719,111140.0,111130.0,0.4881694]
[1759092091878,0.00497,111140.0,111130.0,0.51214404]
[1759092092101,0.0229719,111140.0,111130.0,0.51214404]
[1759092092233,0.0259719,111140.0,111130.0,0.51214404]
[1759092093469,0.0259719,111140.0,111130.0,0.51184432]
[1759092095940,0.0229519,111140.0,111130.0,0.51184432]
[1759092096706,0.00495,111140.0,111130.0,0.51184432]
[1759092096913,0.00495,111140.0,111130.0,0.51180432]
[1759092096914,0.0229519,111140.0,111130.0,0.51180432]
[1759092098100,0.0229519,111140.0,111130.0,0.22384432]
[1759092098308,0.0229519,111140.0,111130.0,0.51180432]
[1759092099083,0.0229519,111140.0,111130.0,0.97974364]
[1759092099293,0.003,111140.0,111130.0,1.01292554]
[1759092099790,0.003,111140.0,111130.0,0.81435101]
[1759092099996,0.003,111140.0,111130.0,1.19603101]
[1759092100728,0.003,111140.0,111130.0,1.19803101]
[1759092100926,0.36934505,111150.0,111140.0,0.17995321]
[1759092101180,0.35196505,111150.0,111140.0,0.17995321]
[1759092101404,0.35196505,111150.0,111140.0,0.49107321]
[1759092101998,0.35196505,111150.0,111140.0,0.49321321]
[1759092102138,0.35496505,111150.0,111140.0,0.49321321]
[1759092102549,0.35496505,111150.0,111140.0,0.49624321]
[1759092103151,0.35496505,111150.0,111140.0,0.49321321]
[1759092103347,0.35496505,111150.0,111140.0,0.49107321]
[1759092103766,0.35496505,111150.0,111140.0,0.49321321]
[1759092105694,0.35496505,111150.0,111140.0,0.49317321]
[1759092108257,0.35496505,111150.0,111140.0,0.20529321]
[1759092108473,0.35496505,111150.0,111140.0,0.49317321]
[1759092109204,0.35496505,111150.0,111140.0,0.49620321]
[1759092112194,0.35496505,111150.0,111140.0,0.20832321]
[1759092112414,0.35496505,111150.0,111140.0,0.49616321]
[1759092112766,0.35496505,111150.0,111140.0,0.20832321]
[1759092112977,0.35496505,111150.0,111140.0,0.49616321]
[1759092114268,0.35496505,111150.0,111140.0,0.96196253]
[1759092115240,0.35301505,111150.0,111140.0,0.96196253]
[1759092115620,0.35500505,111150.0,111140.0,0.49612321]
[1759092115853,0.35500505,111150.0,111140.0,0.96192253]
[1759092116426,0.35500505,111150.0,111140.0,0.49309321]
[1759092116810,0.35500505,111150.0,111140.0,0.20529321]
[1759092116966,0.35500505,111150.0,111140.0,0.49632321]
[1759092117390,0.35500505,111150.0,111140.0,0.20852321]
[1759092117549,0.35500505,111150.0,111140.0,0.49632321]
[1759092118358,0.17257613,111150.0,111140.0,0.49632321]
[1759092118541,0.17257613,111150.0,111140.0,0.67432253]
[1759092118747,0.17257613,111150.0,111140.0,0.96212253]
[1759092118887,0.17257613,111150.0,111140.0,0.49632321]
[1759092119087,0.17257613,111150.0,111140.0,0.96212253]
[1759092119341,0.17257613,111150.0,111140.0,0.49628321]
[1759092119572,0.17257613,111150.0,111140.0,0.96208253]
[1759092119766,0.19057803,111150.0,111140.0,0.96208253]
[1759092119955,0.17257613,111150.0,111140.0,0.96208253]
[1759092120792,0.17257613,111150.0,111140.0,0.20852321]
[1759092121009,0.17257613,111150.0,111140.0,0.96208253]
[1759092121363,0.19057803,111150.0,111140.0,0.96208253]
[1759092122919,0.17257613,111150.0,111140.0,0.96208253]
[1759092123054,0.17058613,111150.0,111140.0,0.96208253]
[1759092124839,0.17058613,111150.0,111140.0,0.99223443]
[1759092125860,0.17058613,111150.0,111140.0,0.52643511]
[1759092126078,0.17058613,111150.0,111140.0,0.99223443]
[1759092127298,0.17058613,111150.0,111140.0,0.70447443]
[1759092127522,0.17058613,111150.0,111140.0,1.08591443]
[1759092129897,0.17058613,111150.0,111140.0,0.99215443]
[1759092130096,0.17058613,111150.0,111140.0,0.62007511]
[1759092130371,0.16758613,111150.0,111140.0,0.70447443]
[1759092130706,0.16758613,111150.0,111140.0,1.08587443]
[1759092131421,0.16758613,111150.0,111140.0,1.08787443]
[1759092132187,0.16758613,111150.0,111140.0,0.70647443]
[1759092132424,0.16758613,111150.0,111140.0,1.08787443]
[1759092132614,0.16758613,111150.0,111140.0,0.70647443]
[1759092132756,0.16758613,111150.0,111140.0,1.08783443]
[1759092133309,0.16758613,111150.0,111140.0,0.70647443]
[1759092133569,0.16758613,111150.0,111140.0,1.08783443]
[1759092134176,0.16758613,111150.0,111140.0,0.62203511]
[1759092134485,0.16758613,111150.0,111140.0,1.08783443]
[1759092135711,0.16758613,111150.0,111140.0,0.62203511]
[1759092135913,0.16758613,111150.0,111140.0,1.08783443]
[1759092140992,0.16758613,111150.0,111140.0,0.99403443]
[1759092141247,0.16758613,111150.0,111140.0,1.08775443]
[1759092142456,0.16758613,111150.0,111140.0,1.08749431]
[1759092143361,0.16758613,111150.0,111140.0,1.08749454]
[1759092143570,0.16758613,111150.0,111140.0,1.08745454]
[1759092143917,0.16758613,111150.0,111140.0,0.70621454]
[1759092144130,0.16758613,111150.0,111140.0,1.08745454]
[1759092146755,0.16758613,111150.0,111140.0,0.24067511]
[1759092146965,0.16758613,111150.0,111140.0,0.64893149]
[1759092147183,0.16758613,111150.0,111140.0,1.11447092]
[1759092147375,0.18758803,111150.0,111140.0,0.73004092]
[1759092147514,0.18758803,111150.0,111140.0,1.10910092]
[1759092148356,0.18758803,111150.0,111140.0,0.72999092]
[1759092148556,0.18758803,111150.0,111140.0,1.11119092]
[1759092148962,0.18758803,111150.0,111140.0,0.73318092]
[1759092149163,0.18758803,111150.0,111140.0,1.11438092]
[1759092150716,0.18758803,111150.0,111140.0,0.73318092]
[1759092150921,0.18758803,111150.0,111140.0,1.11434092]
[1759092153124,0.18558803,111150.0,111140.0,1.11434092]
[1759092156966,0.18558803,111150.0,111140.0,0.73318092]
[1759092157178,0.18558803,111150.0,111140.0,1.11430092]
[1759092157642,0.18558803,111150.0,111140.0,0.64876149]
[1759092157843,0.18558803,111150.0,111140.0,1.11430092]
[1759092158689,0.18558803,111150.0,111140.0,0.73318092]
[1759092158871,0.18756803,111150.0,111140.0,1.11107092]
[1759092159313,0.18558803,111150.0,111140.0,1.11426092]
[1759092161268,0.18558803,111150.0,111140.0,0.73318092]
[1759092161456,0.18558803,111150.0,111140.0,1.11422092]
[1759092162292,0.18558803,111150.0,111140.0,0.64868149]
[1759092162496,0.18558803,111150.0,111140.0,0.26764149]
[1759092162686,0.18558803,111150.0,111140.0,1.11422092]
[1759092166915,0.16758613,111150.0,111140.0,1.11422092]
[1759092167815,0.16758613,111150.0,111140.0,1.20360639]
[1759092168267,0.16758613,111150.0,111140.0,1.54360639]
[1759092168439,0.16758613,111150.0,111140.0,9.54360639]
[1759092169281,0.16758613,111150.0,111140.0,9.54660639]
[1759092169850,0.16758613,111150.0,111140.0,9.54460639]
[1759092170367,0.16758613,111150.0,111140.0,9.54860639]
[1759092174711,0.16758613,111150.0,111140.0,9.16756639]
[1759092174854,0.16758613,111150.0,111140.0,9.54844639]
[1759092175055,0.16758613,111150.0,111140.0,8.70202696]
[1759092175264,0.16758613,111150.0,111140.0,9.54840639]
[1759092177312,0.16758613,111150.0,111140.0,9.16756639]
[1759092177489,0.16758613,111150.0,111140.0,9.54836639]
[1759092177920,0.16758613,111150.0,111140.0,9.16756639]
[1759092178512,0.16758613,111150.0,111140.0,9.54836639]
[1759092179948,0.16758613,111150.0,111140.0,9.16756639]
[1759092180406,0.16758613,111150.0,111140.0,9.54832639]
[1759092186816,0.16258613,111150.0,111140.0,9.54832639]
[1759092187054,1.76258613,111150.0,111140.0,9.54832639]
[1759092187276,1.76258613,111150.0,111140.0,9.54828639]
[1759092187515,1.76258613,111150.0,111140.0,9.45456639]
[1759092187698,1.76258613,111150.0,111140.0,9.54824639]
[1759092188681,1.76258613,111150.0,111140.0,9.16756639]
[1759092188889,1.76258613,111150.0,111140.0,9.54820639]
[1759092189329,1.73758613,111150.0,111140.0,9.45452639]
[1759092189535,1.73758613,111150.0,111140.0,9.54820639]
[1759092190243,1.73758613,111150.0,111140.0,8.70202696]
[1759092190391,1.73758613,111150.0,111140.0,9.54820639]
[1759092190587,1.73962613,111150.0,111140.0,1.07499092]
[1759092190798,1.74261613,111150.0,111140.0,0.26736149]
[1759092191019,1.74261613,111150.0,111140.0,1.11354092]
[1759092191579,1.73761613,111150.0,111140.0,0.26736149]
[1759092191812,1.73761613,111150.0,111140.0,1.11354092]
[1759092193035,1.73462613,111150.0,111140.0,1.11354092]
[1759092194770,1.73462613,111150.0,111140.0,0.73290092]
[1759092194955,1.73462613,111150.0,111140.0,1.11350092]
[1759092195416,1.73462613,111150.0,111140.0,0.64796149]
[1759092195824,1.73462613,111150.0,111140.0,0.26939149]
[1759092196027,1.73462613,111150.0,111140.0,1.02185092]
[1759092196236,1.73462613,111150.0,111140.0,0.73493092]
[1759092196445,1.73462613,111150.0,111140.0,1.11549092]
[1759092197862,1.73462613,111150.0,111140.0,1.11851092]
[1759092198541,1.73462613,111150.0,111140.0,0.73795092]
[1759092198742,1.73462613,111150.0,111140.0,1.11847092]
[1759092199004,1.73462613,111150.0,111140.0,0.73493092]
[1759092199261,1.73462613,111150.0,111140.0,1.11545092]
[1759092202274,1.73462613,111150.0,111140.0,1.11544482]
[1759092202483,1.73462613,111150.0,111140.0,0.64991149]
[1759092202676,1.73462613,111150.0,111140.0,1.11544482]
[1759092203274,1.73462613,111150.0,111140.0,1.11544534]
[1759092203708,1.73462613,111150.0,111140.0,0.64991149]
[1759092203916,1.73462613,111150.0,111140.0,1.11544534]
[1759092205533,1.73258613,111150.0,111140.0,1.11861534]
[1759092205753,1.73258613,111150.0,111140.0,9.20800081]
[1759092205972,1.73258613,111150.0,111140.0,9.54800081]
[1759092212925,1.73258613,111150.0,111140.0,9.16748081]
[1759092213058,1.73258613,111150.0,111140.0,9.54784081]
[1759092216180,1.73258613,111150.0,111140.0,9.45412081]
[1759092216364,1.73258613,111150.0,111140.0,9.54780081]
[1759092218489,1.73258613,111150.0,111140.0,8.70194696]
[1759092218681,1.73258613,111150.0,111140.0,9.54776081]
[1759092219591,1.73258613,111150.0,111140.0,9.16748081]
[1759092219887,1.73258613,111150.0,111140.0,9.54776081]
[1759092223840,1.73258613,111150.0,111140.0,9.16748081]
[1759092224069,1.73258613,111150.0,111140.0,9.54772081]
[1759092226809,1.73258613,111150.0,111140.0,9.16748081]
[1759092227144,1.73258613,111150.0,111140.0,9.54764081]
[1759092227362,1.73258613,111150.0,111140.0,9.16748081]
[1759092227563,1.73258613,111150.0,111140.0,9.54764081]
[1759092232705,1.73258613,111150.0,111140.0,9.16748081]
[1759092232941,1.73258613,111150.0,111140.0,9.54756081]
[1759092234214,1.73258613,111150.0,111140.0,9.16748081]
[1759092234425,1.73258613,111150.0,111140.0,9.54756081]
[1759092235324,1.73258613,111150.0,111140.0,9.08202696]
[1759092235672,1.73258613,111150.0,111140.0,9.54756081]
[1759092238640,1.73258613,111150.0,111140.0,9.16748081]
[1759092238929,1.73258613,111150.0,111140.0,9.45384081]
[1759092239135,1.73258613,111150.0,111140.0,9.54752081]
[1759092239937,1.73258613,111150.0,111140.0,9.16748081]
[1759092240198,1.73258613,111150.0,111140.0,9.54748081]
[1759092241143,1.73258613,111150.0,111140.0,9.45380081]
[1759092241352,1.73258613,111150.0,111140.0,9.54748081]
[1759092249963,1.73258613,111150.0,111140.0,9.16748081]
[1759092250162,1.73258613,111150.0,111140.0,9.54736081]
[1759092251631,1.73258613,111150.0,111140.0,9.16748081]
[1759092251843,1.73258613,111150.0,111140.0,9.54736081]
[1759092252470,1.73258613,111150.0,111140.0,9.16748081]